[Event "St Kilda East and Caulfield Chess Club T3 2025 OPEN Thursdays"]
[Site "st kilda east, Australia"]
[Date "2025.09.18"]
[Round "7.3"]
[White "Bambridge, Greg"]
[Black "Milic, James"]
[Result "0-1"]
[TimeControl "60 minutes per player per game plus 10 seconds from move 1"]
[WhiteElo "1378"]
[BlackElo "1368"]

1. e4 {[%clk 01:00:07]} {[%emt 00:00:02]} e5 {[%clk 00:59:56]} {[%emt
00:00:14]} 2. Nf3 {[%clk 01:00:12]} {[%emt 00:00:05]} Nc6 {[%clk 00:59:58]}
{[%emt 00:00:08]} 3. d4 {[%clk 01:00:16]} {[%emt 00:00:07]} exd4 {[%clk
01:00:04]} {[%emt 00:00:05]} 4. Nxd4 {[%clk 01:00:21]} {[%emt 00:00:04]} Nf6
{[%clk 01:00:07]} {[%emt 00:00:06]} 5. Nxc6 {[%clk 01:00:26]} {[%emt 00:00:05]}
bxc6 {[%clk 01:00:12]} {[%emt 00:00:05]} 6. Bd3 {[%clk 01:00:28]} {[%emt
00:00:08]} d5 {[%clk 01:00:07]} {[%emt 00:00:15]} 7. exd5 {[%clk 01:00:14]}
{[%emt 00:00:24]} cxd5 {[%clk 01:00:07]} {[%emt 00:00:10]} 8. O-O {[%clk
01:00:18]} {[%emt 00:00:06]} Be7 {[%clk 01:00:02]} {[%emt 00:00:15]} 9. Nc3
{[%clk 00:59:22]} {[%emt 00:01:06]} O-O {[%clk 00:57:42]} {[%emt 00:02:30]} 10.
Bg5 {[%clk 00:58:44]} {[%emt 00:00:48]} Be6 {[%clk 00:55:25]} {[%emt 00:02:27]}
11. Re1 {[%clk 00:53:46]} {[%emt 00:05:08]} c6 {[%clk 00:49:03]} {[%emt
00:06:32]} 12. h3 {[%clk 00:48:28]} {[%emt 00:05:29]} Qd6 {[%clk 00:46:18]}
{[%emt 00:02:55]} 13. Ne2 {[%clk 00:43:16]} {[%emt 00:05:22]} Qb4 {[%clk
00:42:52]} {[%emt 00:03:36]} 14. b3 {[%clk 00:41:20]} {[%emt 00:02:06]} h6
{[%clk 00:35:04]} {[%emt 00:07:58]} 15. a3 {[%clk 00:41:07]} {[%emt 00:00:23]}
Qb8 {[%clk 00:30:50]} {[%emt 00:04:24]} 16. Bh4 {[%clk 00:40:49]} {[%emt
00:00:27]} c5 {[%clk 00:29:19]} {[%emt 00:01:41]} 17. Bg3 {[%clk 00:39:59]}
{[%emt 00:00:59]} Bd6 {[%clk 00:29:03]} {[%emt 00:00:27]} 18. Bxd6 {[%clk
00:39:41]} {[%emt 00:00:29]} Qxd6 {[%clk 00:29:10]} {[%emt 00:00:03]} 19. Ng3
{[%clk 00:39:40]} {[%emt 00:00:10]} Qf4 {[%clk 00:25:10]} {[%emt 00:04:11]} 20.
Bf1 {[%clk 00:35:31]} {[%emt 00:04:19]} Qg5 {[%clk 00:20:12]} {[%emt 00:05:08]}
21. Qc1 {[%clk 00:35:19]} {[%emt 00:00:22]} Qxc1 {[%clk 00:19:18]} {[%emt
00:01:03]} 22. Raxc1 {[%clk 00:35:23]} {[%emt 00:00:06]} a5 {[%clk 00:18:30]}
{[%emt 00:00:58]} 23. c4 {[%clk 00:31:40]} {[%emt 00:03:52]} d4 {[%clk
00:17:05]} {[%emt 00:01:35]} 24. Ne4 {[%clk 00:31:12]} {[%emt 00:00:38]} Nxe4
{[%clk 00:17:03]} {[%emt 00:00:12]} 25. Rxe4 {[%clk 00:31:16]} {[%emt
00:00:05]} Rab8 {[%clk 00:13:56]} {[%emt 00:03:17]} 26. b4 {[%clk 00:31:03]}
{[%emt 00:00:23]} axb4 {[%clk 00:13:44]} {[%emt 00:00:23]} 27. axb4 {[%clk
00:31:07]} {[%emt 00:00:07]} Rxb4 {[%clk 00:13:36]} {[%emt 00:00:18]} 28. Re5
{[%clk 00:31:02]} {[%emt 00:00:14]} Rc8 {[%clk 00:13:01]} {[%emt 00:00:45]} 29.
f4 {[%clk 00:29:30]} {[%emt 00:01:42]} g6 {[%clk 00:11:10]} {[%emt 00:02:01]}
30. g4 {[%clk 00:28:53]} {[%emt 00:00:46]} Kg7 {[%clk 00:10:30]} {[%emt
00:00:51]} 31. f5 {[%clk 00:26:16]} {[%emt 00:02:47]} Kf6 {[%clk 00:09:44]}
{[%emt 00:00:56]} 32. Rce1 {[%clk 00:25:29]} {[%emt 00:00:56]} Bxc4 {[%clk
00:09:33]} {[%emt 00:00:21]} 33. fxg6 {[%clk 00:25:32]} {[%emt 00:00:07]} Kxg6
{[%clk 00:07:31]} {[%emt 00:02:12]} 34. Bg2 {[%clk 00:25:05]} {[%emt 00:00:37]}
Be6 {[%clk 00:06:22]} {[%emt 00:01:20]} 35. Be4+ {[%clk 00:20:13]} {[%emt
00:05:02]} Kg7 {[%clk 00:06:03]} {[%emt 00:00:29]} 36. Bd5 {[%clk 00:18:42]}
{[%emt 00:01:41]} Bxd5 {[%clk 00:05:53]} {[%emt 00:00:21]} 37. Rxd5 {[%clk
00:18:45]} {[%emt 00:00:06]} Rb3 {[%clk 00:05:31]} {[%emt 00:00:33]} 38. Kg2
{[%clk 00:18:39]} {[%emt 00:00:16]} d3 {[%clk 00:04:58]} {[%emt 00:00:44]} 39.
Re7 {[%clk 00:17:32]} {[%emt 00:01:17]} c4 {[%clk 00:03:45]} {[%emt 00:01:22]}
40. Rdd7 {[%clk 00:17:34]} {[%emt 00:00:07]} Rf8 {[%clk 00:03:40]} {[%emt
00:00:16]} 41. Rc7 {[%clk 00:17:30]} {[%emt 00:00:14]} c3 {[%clk 00:03:37]}
{[%emt 00:00:13]} 42. Red7 {[%clk 00:17:32]} {[%emt 00:00:08]} c2 {[%clk
00:02:08]} {[%emt 00:01:38]} 43. Kf2 {[%clk 00:17:11]} {[%emt 00:00:30]} Rb7
{[%clk 00:01:26]} {[%emt 00:00:53]} 44. Ke1 {[%clk 00:17:01]} {[%emt 00:00:21]}
c1=Q+ {[%emt 00:00:17]} 45. Rxc1 {[%clk 00:16:59]} {[%emt 00:00:10]} Rxd7
{[%clk 00:01:27]} {[%emt 00:00:04]} 0-1

[Event "St Kilda East and Caulfield Chess Club T3 2025 OPEN Thursdays"]
[Site "st kilda east, Australia"]
[Date "2025.09.18"]
[Round "7.2"]
[White "Kagan, Naum"]
[Black "Hendrey, Thomas"]
[Result "1-0"]
[TimeControl "60 minutes per player per game plus 10 seconds from move 1"]
[WhiteElo "2079"]
[BlackElo "1919"]

1. d4 {[%clk 01:00:07]} {[%emt 00:00:03]} Nf6 {[%clk 01:00:09]} {[%emt
00:00:02]} 2. Nf3 {[%clk 01:00:08]} {[%emt 00:00:09]} e6 {[%clk 00:59:53]}
{[%emt 00:00:26]} 3. Bg5 {[%clk 01:00:02]} {[%emt 00:00:16]} d5 {[%clk
00:59:00]} {[%emt 00:01:03]} 4. e3 {[%clk 00:59:58]} {[%emt 00:00:13]} c5
{[%clk 00:58:24]} {[%emt 00:00:47]} 5. Nbd2 {[%clk 00:59:56]} {[%emt 00:00:11]}
cxd4 {[%clk 00:57:37]} {[%emt 00:00:58]} 6. exd4 {[%clk 00:59:53]} {[%emt
00:00:12]} Bd6 {[%clk 00:56:32]} {[%emt 00:01:14]} 7. Bd3 {[%clk 00:59:49]}
{[%emt 00:00:13]} O-O {[%clk 00:55:23]} {[%emt 00:01:21]} 8. O-O {[%clk
00:59:56]} {[%emt 00:00:03]} b6 {[%clk 00:53:28]} {[%emt 00:02:05]} 9. Qe2
{[%clk 00:57:17]} {[%emt 00:02:47]} a5 {[%clk 00:51:43]} {[%emt 00:01:57]} 10.
Ne5 {[%clk 00:55:36]} {[%emt 00:01:50]} Be7 {[%clk 00:46:44]} {[%emt 00:05:10]}
11. f4 {[%clk 00:54:05]} {[%emt 00:01:41]} h6 {[%clk 00:34:14]} {[%emt
00:12:40]} 12. Bh4 {[%clk 00:53:08]} {[%emt 00:01:06]} Nfd7 {[%clk 00:33:08]}
{[%emt 00:01:17]} 13. Bxe7 {[%clk 00:48:23]} {[%emt 00:04:54]} Qxe7 {[%clk
00:33:14]} {[%emt 00:00:03]} 14. c3 {[%clk 00:48:09]} {[%emt 00:00:24]} Nxe5
{[%clk 00:23:54]} {[%emt 00:09:31]} 15. fxe5 {[%clk 00:47:27]} {[%emt
00:00:52]} Ba6 {[%clk 00:21:28]} {[%emt 00:02:37]} 16. Rf3 {[%clk 00:45:46]}
{[%emt 00:01:50]} Bxd3 {[%clk 00:19:57]} {[%emt 00:01:42]} 17. Rxd3 {[%clk
00:44:39]} {[%emt 00:01:17]} Nd7 {[%clk 00:17:51]} {[%emt 00:02:17]} 18. Re1
{[%clk 00:39:05]} {[%emt 00:05:43]} Kh8 {[%clk 00:10:47]} {[%emt 00:07:15]} 19.
Re3 {[%clk 00:34:40]} {[%emt 00:04:33]} Rae8 {[%clk 00:10:01]} {[%emt
00:00:57]} 20. Qb5 {[%clk 00:30:59]} {[%emt 00:03:50]} Rg8 {[%clk 00:03:27]}
{[%emt 00:06:45]} 21. c4 {[%clk 00:27:43]} {[%emt 00:03:26]} Qb4 {[%clk
00:02:53]} {[%emt 00:00:45]} 22. Qxb4 {[%clk 00:23:32]} {[%emt 00:04:21]} axb4
{[%clk 00:03:02]} {[%emt 00:00:01]} 23. cxd5 {[%clk 00:23:22]} {[%emt
00:00:19]} exd5 {[%clk 00:03:02]} {[%emt 00:00:10]} 24. Rb3 {[%clk 00:22:00]}
{[%emt 00:01:32]} Ra8 {[%clk 00:03:11]} {[%emt 00:00:02]} 25. Rxb4 {[%clk
00:21:52]} {[%emt 00:00:18]} Ra4 {[%emt 00:00:09]} 26. a3 Rxa3 {[%clk
00:03:12]} 27. Rd1 {[%emt 00:00:58]} Ra2 28. Rc1 {[%clk 00:21:03]} Rd8 {[%clk
00:02:15]} {[%emt 00:01:07]} 29. Kf2 {[%clk 00:19:42]} {[%emt 00:01:30]} Kg8
{[%emt 00:01:23]} 30. Rc6 {[%clk 00:18:30]} Rb8 {[%clk 00:02:10]} {[%emt
00:00:24]} 31. Nb1 {[%clk 00:16:25]} {[%emt 00:02:15]} Ra5 {[%clk 00:01:34]}
{[%emt 00:00:47]} 32. Nc3 {[%clk 00:14:17]} {[%emt 00:02:18]} Nf8 {[%clk
00:01:36]} {[%emt 00:00:07]} 33. Rcxb6 {[%clk 00:12:52]} {[%emt 00:01:35]} Rc8
{[%clk 00:01:31]} {[%emt 00:00:16]} 34. Rb8 {[%clk 00:12:26]} {[%emt 00:00:34]}
Rxb8 {[%clk 00:01:03]} {[%emt 00:00:39]} 35. Rxb8 {[%clk 00:12:35]} {[%emt
00:00:02]} Ra7 {[%clk 00:00:55]} {[%emt 00:00:18]} 36. Ke3 {[%clk 00:12:02]}
{[%emt 00:00:43]} Rd7 {[%clk 00:00:57]} {[%emt 00:00:08]} 37. Rb5 {[%clk
00:11:36]} {[%emt 00:00:36]} f6 {[%clk 00:00:33]} {[%emt 00:00:34]} 38. Rxd5
{[%clk 00:11:29]} {[%emt 00:00:16]} Re7 {[%clk 00:00:40]} {[%emt 00:00:04]} 39.
Ke4 {[%clk 00:11:01]} {[%emt 00:00:37]} Nd7 {[%clk 00:00:35]} {[%emt 00:00:16]}
40. Rb5 {[%clk 00:10:36]} {[%emt 00:00:35]} Kf7 {[%clk 00:00:21]} {[%emt
00:00:24]} 41. Nd5 {[%clk 00:09:49]} {[%emt 00:00:56]} Re6 {[%clk 00:00:16]}
{[%emt 00:00:16]} 42. Nf4 {[%clk 00:09:32]} {[%emt 00:00:26]} f5+ {[%clk
00:00:13]} {[%emt 00:00:14]} 43. Kxf5 {[%clk 00:08:35]} {[%emt 00:01:07]} g6+
{[%clk 00:00:22]} 44. Kg4 {[%clk 00:08:19]} {[%emt 00:00:26]} Ra6 {[%clk
00:00:17]} {[%emt 00:00:16]} 45. e6+ {[%clk 00:08:24]} {[%emt 00:00:04]} Rxe6
{[%clk 00:00:25]} {[%emt 00:00:02]} 46. Nxe6 {[%clk 00:08:33]} {[%emt
00:00:02]} Kxe6 {[%clk 00:00:34]} {[%emt 00:00:01]} 47. Kf4 {[%clk 00:08:12]}
{[%emt 00:00:30]} g5+ {[%clk 00:00:36]} {[%emt 00:00:09]} 48. Ke4 {[%clk
00:08:08]} {[%emt 00:00:13]} Nf6+ {[%clk 00:00:45]} {[%emt 00:00:02]} 49. Kd3
{[%clk 00:08:14]} {[%emt 00:00:04]} Kd5 {[%emt 00:00:25]} 50. Ke4+ {[%clk
00:08:14]} 1-0

[Event "St Kilda East and Caulfield Chess Club T3 2025 OPEN Thursdays"]
[Site "st kilda east, Australia"]
[Date "2025.09.18"]
[Round "7.9"]
[White "Lopata, Felix"]
[Black "Shore, Isaac"]
[Result "1-0"]
[TimeControl "60 minutes per player per game plus 10 seconds from move 1"]
[WhiteElo "1254"]
[BlackElo "562"]

1. Nf3 {[%clk 01:00:07]} {[%emt 00:00:01]} c5 {[%clk 01:00:03]} {[%emt
00:00:07]} 2. c4 {[%clk 01:00:10]} {[%emt 00:00:07]} Nc6 {[%clk 00:59:51]}
{[%emt 00:00:23]} 3. g3 {[%clk 01:00:12]} {[%emt 00:00:08]} e6 {[%clk
00:59:46]} {[%emt 00:00:15]} 4. Nc3 {[%clk 00:58:51]} {[%emt 00:01:31]} Nge7
{[%clk 00:59:46]} {[%emt 00:00:10]} 5. d4 {[%clk 00:58:36]} {[%emt 00:00:25]}
cxd4 {[%clk 00:58:28]} {[%emt 00:01:28]} 6. Nxd4 {[%clk 00:58:35]} {[%emt
00:00:11]} g6 {[%clk 00:58:27]} {[%emt 00:00:10]} 7. Bg2 {[%clk 00:58:25]}
{[%emt 00:00:21]} d5 {[%clk 00:58:07]} {[%emt 00:00:30]} 8. cxd5 {[%clk
00:57:55]} {[%emt 00:00:40]} exd5 {[%clk 00:57:44]} {[%emt 00:00:33]} 9. Bf4
{[%clk 00:56:29]} {[%emt 00:01:35]} Bg7 {[%clk 00:56:40]} {[%emt 00:01:14]} 10.
Ndb5 {[%clk 00:54:54]} {[%emt 00:01:46]} Ne5 {[%clk 00:55:22]} {[%emt
00:01:24]} 11. Nxd5 {[%clk 00:53:37]} {[%emt 00:01:31]} Nxd5 {[%clk 00:50:12]}
{[%emt 00:05:19]} 12. Qxd5 {[%clk 00:53:08]} {[%emt 00:00:40]} Qa5+ {[%clk
00:49:07]} {[%emt 00:01:15]} 13. Bd2 {[%clk 00:52:41]} {[%emt 00:00:37]} Qb6
{[%clk 00:48:38]} {[%emt 00:00:38]} 14. Nd6+ {[%clk 00:51:40]} {[%emt
00:01:13]} Kf8 {[%clk 00:47:23]} {[%emt 00:01:22]} 15. O-O {[%clk 00:50:31]}
{[%emt 00:01:21]} Qxb2 {[%clk 00:45:52]} {[%emt 00:01:41]} 16. Nc4 {[%clk
00:50:20]} {[%emt 00:00:21]} Nxc4 {[%clk 00:43:52]} {[%emt 00:02:05]} 17. Qd8#
{[%clk 00:50:20]} {[%emt 00:00:16]} 1-0

[Event "St Kilda East and Caulfield Chess Club T3 2025 OPEN Thursdays"]
[Site "st kilda east, Australia"]
[Date "2025.09.18"]
[Round "7.8"]
[White "Bo, Jeremie"]
[Black "Beckman, John"]
[Result "0-1"]
[TimeControl "60 minutes per player per game plus 10 seconds from move 1"]
[WhiteElo "473"]
[BlackElo "1201"]

1. e4 {[%clk 01:00:09]} {[%emt 00:00:01]} d6 {[%clk 00:59:53]} {[%emt
00:00:17]} 2. d4 {[%clk 00:59:58]} {[%emt 00:00:22]} Nf6 {[%clk 00:59:49]}
{[%emt 00:00:14]} 3. Nc3 {[%clk 00:59:59]} {[%emt 00:00:09]} c6 {[%clk
00:59:40]} {[%emt 00:00:18]} 4. Nf3 {[%clk 00:58:27]} {[%emt 00:01:42]} Bg4
{[%clk 00:59:08]} {[%emt 00:00:42]} 5. Be2 {[%clk 00:57:50]} {[%emt 00:00:48]}
Nbd7 {[%clk 00:58:32]} {[%emt 00:00:46]} 6. h3 {[%clk 00:57:38]} {[%emt
00:00:22]} Bh5 {[%clk 00:56:25]} {[%emt 00:02:17]} 7. Bf4 {[%clk 00:57:29]}
{[%emt 00:00:19]} Qa5 {[%clk 00:53:53]} {[%emt 00:02:42]} 8. Bd2 {[%clk
00:55:03]} {[%emt 00:02:36]} Qc7 {[%clk 00:53:31]} {[%emt 00:00:33]} 9. d5
{[%clk 00:51:58]} {[%emt 00:03:15]} e5 {[%clk 00:50:40]} {[%emt 00:03:01]} 10.
Rb1 {[%clk 00:40:57]} {[%emt 00:11:30]} Be7 {[%clk 00:49:33]} {[%emt 00:01:17]}
11. Be3 {[%clk 00:37:59]} {[%emt 00:03:09]} Bg6 {[%clk 00:46:51]} {[%emt
00:02:52]} 12. Nd2 {[%clk 00:37:30]} {[%emt 00:00:39]} O-O {[%clk 00:45:36]}
{[%emt 00:01:25]} 13. Bd3 {[%clk 00:36:47]} {[%emt 00:00:51]} a6 {[%clk
00:41:16]} {[%emt 00:04:32]} 14. O-O {[%clk 00:32:15]} {[%emt 00:04:42]} Qa5
{[%clk 00:36:52]} {[%emt 00:04:35]} 15. Nc4 {[%clk 00:31:27]} {[%emt 00:00:58]}
Qc7 {[%clk 00:34:41]} {[%emt 00:02:19]} 16. Re1 {[%clk 00:26:42]} {[%emt
00:04:56]} b5 {[%clk 00:33:42]} {[%emt 00:01:09]} 17. Nd2 {[%clk 00:26:13]}
{[%emt 00:00:39]} c5 {[%clk 00:32:58]} {[%emt 00:00:54]} 18. b3 {[%clk
00:24:03]} {[%emt 00:02:21]} Rfb8 {[%clk 00:30:43]} {[%emt 00:02:24]} 19. Nf3
{[%clk 00:23:33]} {[%emt 00:00:40]} Nb6 {[%clk 00:28:02]} {[%emt 00:02:51]} 20.
Nh4 {[%clk 00:22:12]} {[%emt 00:01:31]} Nxe4 {[%clk 00:26:14]} {[%emt
00:01:58]} 21. Nxe4 {[%clk 00:18:50]} {[%emt 00:03:32]} Bxh4 {[%emt 00:00:50]}
22. Nc3 {[%emt 00:02:15]} f5 {[%clk 00:23:25]} {[%emt 00:02:17]} 23. Bd2 {[%clk
00:12:37]} {[%emt 00:04:21]} b4 {[%clk 00:20:10]} {[%emt 00:03:25]} 24. Na4
{[%clk 00:12:21]} {[%emt 00:00:26]} Nxa4 {[%clk 00:18:52]} {[%emt 00:01:27]} 25.
bxa4 {[%clk 00:12:20]} {[%emt 00:00:13]} c4 {[%clk 00:18:21]} {[%emt 00:00:40]}
26. Be2 {[%clk 00:10:52]} {[%emt 00:01:40]} a5 {[%clk 00:16:41]} {[%emt
00:01:50]} 27. c3 {[%clk 00:09:22]} {[%emt 00:01:40]} bxc3 {[%clk 00:10:03]}
{[%emt 00:06:47]} 28. Rxb8+ {[%clk 00:09:22]} {[%emt 00:00:09]} Rxb8 {[%clk
00:09:54]} {[%emt 00:00:19]} 29. Bxc3 {[%emt 00:00:12]} f4 {[%clk 00:09:25]}
{[%emt 00:00:37]} 30. Qd2 {[%clk 00:08:59]} {[%emt 00:00:35]} Qc5 {[%clk
00:08:38]} {[%emt 00:00:56]} 31. Bf3 {[%clk 00:08:45]} {[%emt 00:00:25]} Bd8
{[%clk 00:07:26]} {[%emt 00:00:33]} 32. Be2 {[%clk 00:08:52]} {[%emt 00:00:52]}
Bb6 {[%clk 00:07:23]} {[%emt 00:00:13]} 0-1

[Event "St Kilda East and Caulfield Chess Club T3 2025 OPEN Thursdays"]
[Site "st kilda east, Australia"]
[Date "2025.09.18"]
[Round "7.7"]
[White "Ramachandran, Prashanth"]
[Black "Warren, Elizabeth"]
[Result "1-0"]
[TimeControl "60 minutes per player per game plus 10 seconds from move 1"]
[WhiteElo "1318"]
[BlackElo "837"]

1. e4 {[%clk 00:59:49]} {[%emt 00:00:54]} e6 {[%clk 01:00:08]} 2. d4 {[%clk
00:59:44]} {[%emt 00:00:36]} d5 {[%clk 00:59:58]} {[%emt 00:00:20]} 3. Nc3
{[%clk 00:59:46]} {[%emt 00:00:09]} c5 {[%clk 00:58:45]} {[%emt 00:01:23]} 4.
exd5 {[%clk 00:59:03]} {[%emt 00:00:53]} cxd4 {[%clk 00:57:12]} {[%emt
00:01:43]} 5. Qxd4 {[%clk 00:59:01]} {[%emt 00:00:12]} Qf6 {[%clk 00:53:28]}
{[%emt 00:03:55]} 6. Qxf6 {[%clk 00:57:43]} {[%emt 00:01:28]} Nxf6 {[%clk
00:53:29]} {[%emt 00:00:09]} 7. dxe6 {[%clk 00:57:43]} {[%emt 00:00:10]} Bxe6
{[%clk 00:53:21]} {[%emt 00:00:18]} 8. Bb5+ {[%clk 00:57:34]} {[%emt 00:00:19]}
Nbd7 {[%clk 00:52:59]} {[%emt 00:00:32]} 9. Bf4 {[%clk 00:56:27]} {[%emt
00:01:16]} Bc5 {[%clk 00:51:32]} {[%emt 00:01:36]} 10. f3 {[%clk 00:54:51]}
{[%emt 00:01:47]} a6 {[%clk 00:50:03]} {[%emt 00:01:40]} 11. Bd3 {[%clk
00:54:19]} {[%emt 00:00:41]} Bb4 {[%clk 00:48:27]} {[%emt 00:01:46]} 12. Nge2
{[%clk 00:54:07]} {[%emt 00:00:22]} Nc5 {[%clk 00:47:21]} {[%emt 00:01:17]} 13.
O-O-O {[%clk 00:53:14]} {[%emt 00:01:02]} Nxd3+ {[%clk 00:45:59]} {[%emt
00:01:32]} 14. Rxd3 {[%clk 00:53:11]} {[%emt 00:00:13]} O-O {[%clk 00:45:09]}
{[%emt 00:01:00]} 15. a3 {[%clk 00:52:56]} {[%emt 00:00:26]} Be7 {[%clk
00:43:52]} {[%emt 00:01:20]} 16. Nd4 {[%clk 00:51:23]} {[%emt 00:01:49]} Bc4
{[%clk 00:39:40]} {[%emt 00:04:21]} 17. Re3 {[%clk 00:51:22]} {[%emt 00:00:12]}
Bc5 {[%clk 00:39:04]} {[%emt 00:00:47]} 18. Rd1 {[%clk 00:50:46]} {[%emt
00:00:45]} Rad8 {[%clk 00:38:29]} {[%emt 00:00:45]} 19. Be5 {[%clk 00:49:41]}
{[%emt 00:01:15]} Nd5 {[%clk 00:35:42]} {[%emt 00:02:58]} 20. Nxd5 {[%clk
00:48:55]} {[%emt 00:00:55]} Bxd5 {[%clk 00:34:01]} {[%emt 00:01:50]} 21. Rc3
{[%clk 00:47:49]} {[%emt 00:01:17]} Be7 {[%clk 00:32:42]} {[%emt 00:01:29]} 22.
Nf5 {[%emt 00:00:33]} Bg5+ {[%emt 00:01:48]} 23. f4 {[%clk 00:45:16]} {[%emt
00:00:22]} Bf6 {[%clk 00:29:41]} {[%emt 00:03:12]} 24. Bxf6 {[%clk 00:45:14]}
{[%emt 00:00:12]} Bxg2 {[%clk 00:27:58]} {[%emt 00:01:54]} 25. Bxd8 {[%clk
00:44:40]} {[%emt 00:00:44]} Bf3 {[%clk 00:27:52]} {[%emt 00:00:16]} 26. Rxf3
{[%clk 00:44:40]} {[%emt 00:00:11]} 1-0

[Event "St Kilda East and Caulfield Chess Club T3 2025 OPEN Thursdays"]
[Site "st kilda east, Australia"]
[Date "2025.09.18"]
[Round "7.1"]
[White "Sandler, Leonid"]
[Black "Rujevic, Mirko"]
[Result "1/2-1/2"]
[TimeControl "60 minutes per player per game plus 10 seconds from move 1"]
[WhiteElo "2279"]
[BlackElo "2163"]

1. c4 {[%clk 01:00:06]} {[%emt 00:00:03]} c5 {[%clk 00:59:47]} {[%emt
00:00:23]} 2. Nc3 {[%clk 01:00:03]} {[%emt 00:00:13]} Nc6 {[%clk 00:59:42]}
{[%emt 00:00:16]} 3. g3 {[%clk 00:59:45]} {[%emt 00:00:27]} g6 {[%clk
00:59:24]} {[%emt 00:00:28]} 4. Bg2 {[%clk 00:59:51]} {[%emt 00:00:04]} Bg7
{[%clk 00:59:26]} {[%emt 00:00:08]} 5. Nf3 {[%clk 00:58:35]} {[%emt 00:01:26]}
Nf6 {[%clk 00:58:07]} {[%emt 00:01:29]} 6. O-O {[%clk 00:58:29]} {[%emt
00:00:15]} O-O {[%clk 00:58:04]} {[%emt 00:00:13]} 7. d4 {[%clk 00:58:37]}
{[%emt 00:00:02]} cxd4 {[%clk 00:57:00]} {[%emt 00:01:14]} 8. Nxd4 {[%clk
00:58:43]} {[%emt 00:00:05]} Qb6 {[%clk 00:50:50]} {[%emt 00:06:19]} 9. Nb3
{[%clk 00:53:39]} {[%emt 00:05:14]} d6 {[%clk 00:49:12]} {[%emt 00:01:49]} 10.
Nd5 {[%clk 00:44:31]} {[%emt 00:09:18]} Nxd5 {[%clk 00:42:39]} {[%emt
00:06:43]} 11. cxd5 {[%clk 00:44:28]} {[%emt 00:00:14]} Ne5 {[%clk 00:42:07]}
{[%emt 00:00:42]} 12. Be3 {[%clk 00:42:47]} {[%emt 00:01:51]} Qa6 {[%clk
00:38:04]} {[%emt 00:04:14]} 13. Bd4 {[%clk 00:40:27]} {[%emt 00:02:29]} Bd7
{[%clk 00:35:39]} {[%emt 00:02:34]} 14. h3 {[%clk 00:35:57]} {[%emt 00:04:40]}
Rac8 {[%clk 00:32:31]} {[%emt 00:03:18]} 15. Bc3 {[%clk 00:30:01]} {[%emt
00:06:07]} Rc7 {[%clk 00:22:24]} {[%emt 00:10:18]} 16. Re1 {[%clk 00:25:36]}
{[%emt 00:04:34]} Rfc8 {[%clk 00:20:00]} {[%emt 00:02:34]} 17. Kh2 {[%clk
00:20:20]} {[%emt 00:05:26]} h5 {[%clk 00:15:27]} {[%emt 00:04:43]} 18. f4
{[%clk 00:16:19]} {[%emt 00:04:11]} Rxc3 {[%clk 00:14:17]} {[%emt 00:01:19]} 19.
bxc3 {[%clk 00:15:48]} {[%emt 00:00:42]} Nc4 {[%clk 00:14:16]} {[%emt
00:00:11]} 20. Qd3 {[%clk 00:15:07]} {[%emt 00:00:52]} Qb6 {[%clk 00:12:21]}
{[%emt 00:02:05]} 21. Nd4 {[%clk 00:13:55]} {[%emt 00:01:21]} Qa5 {[%clk
00:08:55]} {[%emt 00:03:37]} 22. Rab1 {[%clk 00:10:35]} {[%emt 00:03:29]} Rc7
{[%clk 00:07:37]} {[%emt 00:01:28]} 23. Rec1 {[%clk 00:06:15]} {[%emt
00:04:30]} a6 {[%clk 00:06:20]} {[%emt 00:01:28]} 24. Rb4 {[%clk 00:05:27]}
{[%emt 00:00:57]} b5 {[%clk 00:00:28]} {[%emt 00:06:02]} 25. Nc6 {[%clk
00:05:04]} {[%emt 00:00:33]} Qa3 {[%clk 00:00:27]} {[%emt 00:00:10]} 26. Rc2
{[%clk 00:04:36]} {[%emt 00:00:38]} Kf8 {[%clk 00:00:31]} {[%emt 00:00:07]} 27.
e4 {[%clk 00:04:04]} {[%emt 00:00:42]} Bxc6 {[%clk 00:00:19]} {[%emt 00:00:23]}
28. dxc6 {[%clk 00:04:07]} {[%emt 00:00:07]} Rxc6 {[%clk 00:00:25]} {[%emt
00:00:04]} 29. Rb3 {[%clk 00:03:32]} {[%emt 00:00:45]} Qc5 {[%clk 00:00:29]}
{[%emt 00:00:06]} 30. e5 {[%clk 00:03:25]} {[%emt 00:00:17]} Rc8 {[%clk
00:00:38]} {[%emt 00:00:02]} 31. exd6 {[%clk 00:03:08]} {[%emt 00:00:27]} Nxd6
{[%clk 00:00:40]} {[%emt 00:00:07]} 32. Re2 {[%clk 00:01:53]} {[%emt 00:01:25]}
Bf6 {[%clk 00:00:39]} {[%emt 00:00:12]} 33. Qd5 {[%clk 00:01:54]} {[%emt
00:00:08]} Qxd5 {[%clk 00:00:31]} {[%emt 00:00:19]} 34. Bxd5 {[%clk 00:02:02]}
Bxc3 {[%clk 00:00:32]} {[%emt 00:00:10]} 35. g4 {[%clk 00:01:49]} {[%emt
00:00:23]} hxg4 {[%clk 00:00:28]} {[%emt 00:00:14]} 36. hxg4 {[%clk 00:01:58]}
{[%emt 00:00:01]} b4 {[%emt 00:00:20]} 37. Kg2 {[%emt 00:00:04]} Ke8 1/2-1/2